fUST/lending_fUST_20250407
["ID","MTS","AMOUNT","RATE_DAILY","PERIOD"]
[357354924,1744012154742,753.74,0.00046449,120]
[357354927,1744012154997,753.74,0.00046449,120]
[357354931,1744012155486,753.82000032,0.00046449,120]
[357355035,1744012232602,-5342.0,0.00023,2]
[357355037,1744012232612,-485.438053,0.0002308,2]
[357355039,1744012232622,-600.0,0.00023095,2]
[357355041,1744012232631,-300.0,0.00023899,2]
[357355043,1744012232641,-4922.16059574,0.000239,5]
[357355045,1744012232651,-151.0,0.00023915,2]
[357355046,1744012232661,-24900.0,0.00023929,2]
[357355047,1744012232670,-1336.68453821,0.0002415,2]
[357355048,1744012232679,-500.0,0.0002425,2]
[357355049,1744012232689,-6850.58330885,0.00024399,2]
[357355075,1744012238563,-423.61062132,0.000229,2]
[357355077,1744012238573,-500.0,0.00024398,2]
[357355080,1744012238584,-500.0,0.00024398,2]
[357355081,1744012238594,-500.0,0.00024398,2]
[357355084,1744012238604,-500.0,0.00024398,2]
[357355085,1744012238614,-500.0,0.00024398,2]
[357355087,1744012238623,-500.0,0.00024398,2]
[357355089,1744012238633,-500.0,0.00024398,2]
[357355091,1744012238643,-518.76759643,0.00024398,2]
[357355093,1744012238652,-475.10334017,0.00024398,2]
[357355095,1744012238662,-482.6403509,0.00024398,2]
[357355097,1744012238673,-17831.3712593,0.00024399,2]
[357355099,1744012238683,-500.0,0.000244,2]
[357355101,1744012238692,-500.0,0.000244,2]
[357355103,1744012238702,-600.0,0.0002446,2]
[357355105,1744012238711,-221.6213749,0.00024565,2]
[357355107,1744012238721,-500.0,0.00024651,2]
[357355109,1744012238731,-380.0,0.00024658,2]
[357355110,1744012238739,-200.0,0.00024658,15]
[357355111,1744012238749,-209.37456079,0.00024658,2]
[357355112,1744012238758,-228.2523933,0.00024667,2]
[357355114,1744012238768,-655.38245162,0.00024777,2]
[357355116,1744012238777,-500.0,0.00025033,2]
[357355118,1744012238786,-500.0,0.0002546,2]
[357355120,1744012238796,-159.5185218,0.00025636,2]
[357355121,1744012238805,-500.0,0.000257,2]
[357355122,1744012238815,-181.0,0.000257,2]
[357355124,1744012238825,-181.0,0.000257,2]
[357355125,1744012238834,-181.0,0.000257,2]
[357355126,1744012238844,-420.0,0.0002592,2]
[357355127,1744012238853,-298.54495857,0.00026,2]
[357355129,1744012238863,-500.0,0.00026,2]
[357355131,1744012238872,-500.83342887,0.00026067,2]
[357355133,1744012238881,-500.0,0.00026067,2]
[357355134,1744012238891,-500.45091803,0.00026067,2]
[357355135,1744012238901,-501.25517294,0.00026067,2]
[357355136,1744012238911,-214.89099413,0.00026067,2]
[357355137,1744012238920,-500.0,0.00026233,2]
[357355138,1744012238930,-500.0,0.00026233,2]
[357355139,1744012238939,-200.0,0.00026363,2]
[357355140,1744012238949,-500.0,0.00026841,2]
[357355141,1744012238958,-268.08756316,0.00027,2]
[357355143,1744012238968,-500.98384765,0.00027,2]
[357355144,1744012238978,-177.46536554,0.00027,2]
[357355145,1744012238988,-644.82049223,0.00027,2]
[357355146,1744012238997,-500.0,0.00027,2]
[357355147,1744012239006,-154.70116661,0.00027,2]
[357355148,1744012239016,-501.1324001,0.00027,2]
[357355149,1744012239026,-500.0,0.00027,2]
[357355150,1744012239036,-500.0,0.00027,2]
[357355151,1744012239045,-500.0,0.00027,2]
[357355152,1744012239055,-409.2913362,0.00027,2]
[357355153,1744012239065,-500.0,0.00027,2]
[357355154,1744012239077,-500.0,0.00027,2]
[357355155,1744012239087,-500.0,0.00027,2]
[357355156,1744012239096,-500.0,0.00027,2]
[357355157,1744012239106,-500.0,0.00027,2]
[357355158,1744012239116,-160.72388029,0.00027,2]
[357355159,1744012239126,-500.0,0.00027,2]
[357355160,1744012239135,-211.64277183,0.00027,2]
[357355161,1744012239145,-500.0,0.00027091,2]
[357355162,1744012239155,-500.0,0.00027123,2]
[357355163,1744012239165,-500.0,0.00027397,5]
[357355164,1744012239174,-500.0,0.00027684,2]
[357355165,1744012239184,-174.78,0.00027733,2]
[357355166,1744012239194,-600.0,0.00028577,2]
[357355167,1744012239203,-500.0,0.00028719,2]
[357355168,1744012239213,-33814.561149,0.0002979,2]
[357355169,1744012239223,-944.62973215,0.0002979,2]
[357355170,1744012239233,-362.57,0.000298,31]
[357355171,1744012239245,-362.57,0.000298,31]
[357355172,1744012239255,-362.57,0.000298,31]
[357355173,1744012239264,-362.57,0.000298,31]
[357355174,1744012239274,-362.57,0.000298,31]
[357355175,1744012239285,-362.57,0.000298,31]
[357355176,1744012239294,-362.57,0.000298,31]
[357355177,1744012239304,-362.57,0.000298,31]
[357355178,1744012239313,-362.57,0.000298,31]
[357355179,1744012239327,-362.57,0.000298,31]
[357355180,1744012239337,-362.57,0.000298,31]
[357355181,1744012239346,-362.57,0.000298,31]
[357355182,1744012239356,-500.0,0.00029879,5]
[357355183,1744012239366,-1000.0,0.00030513,5]
[357355184,1744012239375,-160.0,0.00031089,3]
[357355185,1744012239385,-160.0,0.00031089,3]
[357355186,1744012239395,-500.0,0.00031179,5]
[357355187,1744012239405,-500.0,0.00031234,7]
[357355188,1744012239415,-1000.0,0.00031479,5]
[357355189,1744012239424,-500.0,0.00031516,7]
[357355190,1744012239434,-500.0,0.00031658,7]
[357355191,1744012239443,-1000.0,0.00031713,2]
[357355192,1744012239453,-1000.0,0.00031713,5]
[357355193,1744012239463,-600.0,0.00031842,7]
[357355194,1744012239472,-503.09758704,0.0003233,5]
[357355195,1744012239482,-407.13155237,0.0003233,2]
[357355196,1744012239491,-501.58407249,0.0003233,5]
[357355197,1744012239501,-152.73582503,0.0003233,5]
[357355198,1744012239511,-500.46992747,0.0003233,5]
[357355199,1744012239521,-270.03880663,0.0003233,5]
[357355200,1744012239531,-500.0,0.0003233,5]
[357355201,1744012239541,-500.84812367,0.0003233,5]
[357355202,1744012239552,-500.0,0.0003233,5]
[357355203,1744012239562,-500.0,0.00032478,2]
[357355204,1744012239572,-500.0,0.00032478,2]
[357355205,1744012239583,-328.37748649,0.00032478,2]
[357355206,1744012239593,-1000.0,0.00032479,5]
[357355207,1744012239603,-500.0,0.00032479,2]
[357355208,1744012239613,-500.0,0.00032479,5]
[357355209,1744012239623,-1000.0,0.00032479,5]
[357355210,1744012239634,-1000.0,0.00032479,5]
[357355211,1744012239644,-161.30938992,0.00032479,5]
[357355212,1744012239653,-600.0,0.00032481,7]
[357355213,1744012239663,-600.0,0.00032554,7]
[357355214,1744012239673,-1000.0,0.00032877,5]
[357355215,1744012239683,-600.0,0.00033508,7]
[357355216,1744012239693,-600.0,0.00033566,7]
[357355217,1744012239704,-600.0,0.00033671,7]
[357355218,1744012239713,-600.0,0.00033719,7]
[357355219,1744012239723,-679.56509734,0.00033968,2]
[357355220,1744012239733,-160.0,0.00033968,2]
[357355221,1744012239896,-419.36665037,0.00033968,2]
[357355222,1744012239905,-12527.9349248,0.00034009,2]
[357355223,1744012239915,-160.0,0.00034009,2]
[357355224,1744012239925,-160.0,0.00034166,2]
[357355225,1744012239934,-33814.561149,0.00034208,2]
[357355226,1744012239943,-944.62973215,0.00034208,2]
[357355227,1744012239953,-301.768367,0.00034227,10]
[357355228,1744012239962,-485.438053,0.00034619,2]
[357355229,1744012239971,-600.0,0.00034719,7]
[357355230,1744012239981,-232.15337434,0.000349,2]
[357355231,1744012239991,-500.0,0.00034956,7]
[357355232,1744012240001,-33814.561149,0.00034979,2]
[357355233,1744012240011,-944.62973215,0.00034979,2]
[357355234,1744012240021,-600.0,0.00034998,7]
[357355235,1744012240031,-18206.55001339,0.00035,2]
[357355236,1744012240040,-10562.47343699,0.00035,2]
[357355237,1744012240051,-888.31659101,0.00035,2]
[357355238,1744012240062,-268.23634653,0.00035014,5]
[357355239,1744012240072,-500.0,0.00035014,5]
[357355240,1744012240083,-500.0,0.00035014,5]
[357355241,1744012240094,-500.0,0.00035014,5]
[357355242,1744012240104,-502.24471079,0.00035014,5]
[357355243,1744012240114,-500.0,0.00035014,5]
[357355244,1744012240123,-500.0,0.00035014,5]
[357355245,1744012240133,-500.0,0.00035014,5]
[357355246,1744012240142,-500.0,0.00035014,5]
[357355247,1744012240152,-500.73757329,0.00035014,5]
[357355248,1744012240162,-500.0,0.00035014,5]
[357355249,1744012240172,-501.11557002,0.00035014,5]
[357355250,1744012240182,-394.48844015,0.00035014,5]
[357355251,1744012240191,-500.0,0.00035014,5]
[357355252,1744012240201,-500.0,0.00035014,5]
[357355253,1744012240211,-500.0,0.00035014,5]
[357355255,1744012240220,-33814.561149,0.00035018,2]
[357355256,1744012240229,-944.62973215,0.00035018,2]
[357355257,1744012240243,-500.0,0.00035046,7]
[357355258,1744012240253,-500.0,0.00035071,5]
[357355259,1744012240263,-500.0,0.00035071,5]
[357355260,1744012240273,-500.0,0.00035071,5]
[357355261,1744012240284,-500.0,0.00035113,5]
[357355262,1744012240294,-500.0,0.00035113,5]
[357355263,1744012240304,-500.0,0.00035186,5]
[357355264,1744012240314,-33814.561149,0.00035297,2]
[357355265,1744012240324,-944.62973215,0.00035297,3]
[357355266,1744012240334,-362.57,0.000353,31]
[357355267,1744012240343,-362.57,0.000353,31]
[357355268,1744012240353,-362.57,0.000353,31]
[357355269,1744012240363,-362.57,0.000353,31]
[357355270,1744012240373,-362.57,0.000353,31]
[357355272,1744012240383,-362.57,0.000353,31]
[357355274,1744012240393,-362.57,0.000353,31]
[357355276,1744012240403,-362.57,0.000353,31]
[357355278,1744012240412,-362.57,0.000353,31]
[357355280,1744012240422,-362.57,0.000353,31]
[357355282,1744012240431,-362.57,0.000353,31]
[357355283,1744012240440,-362.57,0.000353,31]
[357355284,1744012240449,-362.57,0.000353,31]
[357355285,1744012240459,-362.57,0.000353,31]
[357355286,1744012240468,-362.57,0.000353,31]
[357355287,1744012240477,-362.57,0.000353,31]
[357355288,1744012240488,-362.57,0.000353,31]
[357355289,1744012240498,-362.57,0.000353,31]
[357355290,1744012240508,-362.57,0.000353,31]
[357355292,1744012240518,-362.57,0.000353,31]
[357355293,1744012240527,-362.57,0.000353,31]
[357355294,1744012240537,-362.57,0.000353,31]
[357355295,1744012240546,-362.57,0.000353,31]
[357355296,1744012240555,-362.57,0.000353,31]
[357355297,1744012240565,-12527.9349248,0.00035307,3]
[357355298,1744012240574,-500.0,0.00035317,5]
[357355299,1744012240583,-500.0,0.00035317,5]
[357355300,1744012240593,-501.00402822,0.00035317,5]
[357355301,1744012240603,-500.0,0.00035391,7]
[357355302,1744012240612,-160.0,0.00035616,7]
[357355303,1744012240622,-313.26992411,0.00035616,7]
[357355304,1744012240632,-232.15337434,0.00035739,2]
[357355305,1744012240641,-402.893293,0.0003589,2]
[357355306,1744012240652,-1140.5014602,0.00036,120]
[357355307,1744012240662,-600.0,0.00036019,7]
[357355308,1744012240672,-163.17367754,0.0003614,3]
[357355309,1744012240689,-15086.6,0.0003614,3]
[357355310,1744012240835,-5219.15847242,0.0003614,3]
[357355389,1744012246123,500.0,0.00046457,120]
[357355419,1744012246354,500.0,0.00046457,120]
[357355442,1744012246612,500.0,0.00046457,120]
[357355479,1744012246790,-280.96699609,0.0003614,3]
[357355492,1744012246860,500.0,0.00046457,120]
[357355497,1744012247045,500.0,0.00046457,120]
[357355498,1744012247118,500.0,0.00046457,120]
[357355499,1744012247306,500.0,0.00046457,120]
[357355500,1744012247378,500.0,0.00046457,120]
[357355501,1744012247472,503.81708335,0.00046457,120]
[357355502,1744012247551,500.0,0.00046457,120]
[357355503,1744012247625,500.0,0.00046457,120]
[357355504,1744012247706,500.0,0.00046457,120]
[357355505,1744012247802,500.0,0.00046457,120]
[357355506,1744012247940,500.0,0.00046457,120]
[357355507,1744012248021,500.0,0.00046457,120]
[357355508,1744012248254,413.03489934,0.00046457,120]
[357355509,1744012248349,500.0,0.00046457,120]
[357355510,1744012248427,500.0,0.00046457,120]
[357355511,1744012248507,515.66819996,0.00046457,120]
[357355512,1744012248581,500.0,0.00046457,120]
[357355513,1744012248659,500.0,0.00046457,120]
[357355514,1744012248733,500.0,0.00046457,120]
[357355515,1744012248820,502.83001969,0.00046457,120]
[357355516,1744012248896,500.0,0.00046457,120]
[357355517,1744012248969,500.0,0.00046457,120]
[357355518,1744012249042,500.0,0.00046457,120]
[357355519,1744012249118,500.0,0.00046457,120]
[357355520,1744012249286,175.6,0.00046457,120]
[357355521,1744012249393,498.80184552,0.00046457,120]
[357355522,1744012250284,500.0,0.00046457,120]
[357355523,1744012250521,500.0,0.00046457,120]
[357355524,1744012250597,728.4,0.00046457,120]
[357355525,1744012250768,500.0,0.00046457,120]
[357355526,1744012250840,728.4,0.00046457,120]
[357355527,1744012251021,500.0,0.00046457,120]
[357355528,1744012251096,728.4,0.00046457,120]
[357355529,1744012251169,974.88,0.00046457,120]
[357355530,1744012251402,500.0,0.00046457,120]
[357355531,1744012251480,728.4,0.00046457,120]
[357355532,1744012251554,974.88,0.00046457,120]
[357355533,1744012251637,500.0,0.00046457,120]
[357355534,1744012251707,974.88,0.00046457,120]
[357355535,1744012251796,728.4,0.00046457,120]
[357355536,1744012251868,500.0,0.00046457,120]
[357355537,1744012251939,974.88,0.00046457,120]
[357355538,1744012252010,500.0,0.00046457,120]
[357355539,1744012252102,455.11061518,0.00046457,120]
[357355540,1744012252183,728.4,0.00046457,120]
[357355541,1744012252262,974.88,0.00046457,120]
[357355542,1744012252337,506.86221488,0.00046457,120]
[357355543,1744012252423,500.0,0.00046457,120]
[357355544,1744012252513,728.4,0.00046457,120]
[357355545,1744012252582,974.88,0.00046457,120]
[357355546,1744012252657,500.0,0.00046457,120]
[357355547,1744012252731,728.4,0.00046457,120]
[357355548,1744012252802,974.88,0.00046457,120]
[357355549,1744012252876,728.4,0.00046457,120]
[357355550,1744012252948,500.0,0.00046457,120]
[357355551,1744012253021,974.88,0.00046457,120]
[357355552,1744012253098,608.11512771,0.00046457,120]
[357355553,1744012253176,500.0,0.00046457,120]
[357355554,1744012253250,728.4,0.00046457,120]
[357355555,1744012253325,974.88,0.00046457,120]
[357355556,1744012253400,500.0,0.00046457,120]
[357355557,1744012253474,728.4,0.00046457,120]
[357355558,1744012253547,974.88,0.00046457,120]
[357355559,1744012253619,500.0,0.00046457,120]
[357355560,1744012253695,728.4,0.00046457,120]
[357355561,1744012253767,974.88,0.00046457,120]
[357355562,1744012253845,408.29249864,0.00046457,120]
[357355563,1744012253926,728.4,0.00046457,120]
[357355564,1744012254002,974.88,0.00046457,120]
[357355565,1744012254162,728.4,0.00046457,120]
[357355566,1744012254311,974.88,0.00046457,120]
[357355567,1744012254418,728.4,0.00046457,120]
[357355568,1744012254553,974.88,0.00046457,120]
[357355569,1744012254690,728.4,0.00046457,120]
[357355571,1744012254802,974.88,0.00046457,120]
[357355572,1744012254953,728.4,0.00046457,120]
[357355573,1744012255065,974.88,0.00046457,120]
[357355576,1744012255221,728.4,0.00046457,120]
[357355577,1744012255300,500.0,0.00046457,120]
[357355578,1744012255374,974.88,0.00046457,120]
[357355581,1744012255463,728.4,0.00046457,120]
[357355589,1744012255531,500.0,0.00046457,120]
[357355597,1744012255600,974.88,0.00046457,120]
[357355603,1744012255734,728.4,0.00046457,120]
[357355604,1744012255812,500.0,0.00046457,120]
[357355605,1744012255887,974.88,0.00046457,120]
[357355606,1744012255976,728.4,0.00046457,120]
[357355607,1744012256054,500.0,0.00046457,120]
[357355608,1744012256128,974.88,0.00046457,120]
[357355609,1744012256323,974.88,0.00046457,120]
[357355610,1744012256414,728.4,0.00046457,120]
[357355611,1744012256573,974.88,0.00046457,120]
[357355612,1744012256659,500.0,0.00046457,120]
[357355613,1744012256750,728.4,0.00046457,120]
[357355614,1744012256823,974.88,0.00046457,120]
[357355615,1744012256899,501.7776056,0.00046457,120]
[357355616,1744012256975,728.52,0.00046457,120]
[357355617,1744012257056,500.0,0.00046457,120]
[357355618,1744012257133,975.05688763,0.00046457,120]
[357355619,1744012257288,500.0,0.00046457,120]
[357355620,1744012257870,500.0,0.00046457,120]
[357355621,1744012257945,500.0,0.00046457,120]
[357355622,1744012258044,500.0,0.00046457,120]
[357355623,1744012258138,500.0,0.00046457,120]
[357355624,1744012258603,500.0,0.00046457,120]
[357355625,1744012258699,500.0,0.00046457,120]
[357355626,1744012258776,500.0,0.00046457,120]
[357355627,1744012258858,500.0,0.00046457,120]
[357355628,1744012258932,500.0,0.00046457,120]
[357355629,1744012259007,500.0,0.00046457,120]
[357355630,1744012259084,500.0,0.00046457,120]
[357355631,1744012259161,500.0,0.00046457,120]
[357355632,1744012259246,500.0,0.00046457,120]
[357355633,1744012259327,538.96563512,0.00046457,120]
[357355634,1744012259401,500.0,0.00046457,120]
[357355635,1744012259479,500.0,0.00046457,120]
[357355636,1744012259528,500.0,0.00046457,120]
[357355637,1744012259561,500.0,0.00046457,120]
[357355638,1744012259601,500.0,0.00046457,120]
[357355639,1744012259635,500.0,0.00046457,120]
[357355640,1744012259754,500.0,0.00046457,120]
[357355641,1744012259886,500.0,0.00046457,120]
[357355642,1744012259999,500.0,0.00046457,120]
[357355643,1744012260207,279.51,0.00046457,120]
[357355644,1744012260245,500.0,0.00046457,120]
[357355645,1744012260496,500.0,0.00046457,120]
[357355646,1744012260736,500.0,0.00046457,120]
[357355647,1744012260981,500.0,0.00046457,120]
[357355648,1744012261079,502.78499067,0.00046457,120]
[357355649,1744012261230,500.0,0.00046457,120]
[357355650,1744012261289,500.0,0.00046457,120]
[357355651,1744012261532,500.0,0.00046457,120]
[357355652,1744012261680,500.0,0.00046457,120]
[357355653,1744012261774,500.0,0.00046457,120]
[357355654,1744012261931,500.0,0.00046457,120]
[357355655,1744012262019,500.0,0.00046457,120]
[357355656,1744012262278,500.0,0.00046457,120]
[357355657,1744012262525,500.0,0.00046457,120]
[357355658,1744012262559,186.17745731,0.00046457,120]
[357355659,1744012264483,500.0,0.00046457,120]
[357355660,1744012265225,500.0,0.00046457,120]
[357355661,1744012265431,500.0,0.00046457,120]
[357355662,1744012265465,500.0,0.00046457,120]
[357355663,1744012265557,500.0,0.00046457,120]
[357355664,1744012265757,500.0,0.00046457,120]
[357355665,1744012265830,500.0,0.00046457,120]
[357355666,1744012265996,500.0,0.00046457,120]
[357355667,1744012266031,516.5015548,0.00046457,120]
[357355668,1744012266099,500.0,0.00046457,120]
[357355669,1744012266326,514.28456067,0.00046457,120]
[357355670,1744012266365,500.0,0.00046457,120]
[357355671,1744012266418,500.0,0.00046457,120]
[357355672,1744012266684,504.429619,0.00046457,120]
[357355673,1744012266719,500.0,0.00046457,120]
[357355674,1744012266938,500.0,0.00046457,120]
[357355675,1744012267188,500.0,0.00046457,120]
[357355676,1744012267439,500.0,0.00046457,120]
[357355677,1744012267681,642.21,0.00046457,120]
[357355678,1744012267950,500.0,0.00046457,120]
[357355679,1744012268392,500.0,0.00046457,120]
[357355680,1744012268950,500.0,0.00046457,120]
[357355681,1744012268986,500.0,0.00046457,120]
[357355682,1744012269046,500.0,0.00046457,120]
[357355683,1744012269304,500.0,0.00046457,120]
[357355684,1744012269578,500.0,0.00046457,120]
[357355685,1744012269634,500.0,0.00046457,120]
[357355686,1744012269772,500.0,0.00046457,120]
[357355687,1744012269805,500.0,0.00046457,120]
[357355688,1744012269875,500.0,0.00046457,120]
[357355689,1744012270056,500.0,0.00046457,120]
[357355690,1744012270101,500.81859712,0.00046457,120]
[357355691,1744012270134,500.0,0.00046457,120]
[357355692,1744012270291,500.0,0.00046457,120]
[357355693,1744012270428,500.0,0.00046457,120]
[357355694,1744012270543,500.0,0.00046457,120]
[357355695,1744012270671,500.0,0.00046457,120]
[357355696,1744012270784,500.0,0.00046457,120]
[357355697,1744012270943,500.0,0.00046457,120]
[357355698,1744012271032,500.0,0.00046457,120]
[357355699,1744012271208,500.0,0.00046457,120]
[357355700,1744012271311,500.0,0.00046457,120]
[357355701,1744012271483,500.0,0.00046457,120]
[357355702,1744012271559,500.0,0.00046457,120]
[357355703,1744012271719,518.78,0.00046457,120]
[357355704,1744012271804,500.0,0.00046457,120]
[357355705,1744012271927,500.0,0.00046457,120]
[357355706,1744012272044,500.0,0.00046457,120]
[357355707,1744012272305,249.24180956,0.00046457,120]
[357355708,1744012272341,500.0,0.00046457,30]
[357355709,1744012272596,500.0,0.00046457,30]
[357355710,1744012272997,500.0,0.00046457,30]
[357355711,1744012273198,500.0,0.00046457,120]
[357355712,1744012273277,500.0,0.00046457,30]
[357355713,1744012273467,500.0,0.00046457,120]
[357355714,1744012273522,500.0,0.00046457,30]
[357355715,1744012273709,500.0,0.00046457,120]
[357355716,1744012273972,500.0,0.00046457,120]
[357355717,1744012274243,500.0,0.00046457,120]
[357355718,1744012274419,500.0,0.00046457,120]
[357355719,1744012274510,500.0,0.00046457,120]
[357355720,1744012274653,500.0,0.00046457,120]
[357355721,1744012274757,500.0,0.00046457,120]
[357355722,1744012274898,500.0,0.00046457,120]
[357355723,1744012275024,500.0,0.00046457,120]
[357355724,1744012275140,500.0,0.00046457,120]
[357355725,1744012275272,500.0,0.00046457,120]
[357355726,1744012275309,500.0,0.00046457,120]
[357355727,1744012275392,505.02370978,0.00046457,120]
[357355728,1744012275517,500.0,0.00046457,120]
[357355729,1744012275579,317.58,0.00046457,120]
[357355730,1744012275762,500.0,0.00046457,120]
[357355731,1744012276003,175.86,0.00046457,120]
[357355732,1744012276069,500.0,0.00046457,120]
[357355733,1744012276346,500.0,0.00046457,120]
[357355734,1744012276591,500.0,0.00046457,120]
[357355735,1744012276629,500.0,0.00046457,120]
[357355736,1744012276820,500.0,0.00046457,120]
[357355737,1744012276859,500.0,0.00046457,120]
[357355738,1744012277081,500.0,0.00046457,120]
[357355739,1744012277120,500.0,0.00046457,120]
[357355740,1744012277210,500.0,0.00046457,120]
[357355741,1744012277335,500.0,0.00046457,120]
[357355742,1744012277380,500.0,0.00046457,120]
[357355743,1744012277460,500.0,0.00046457,120]
[357355744,1744012277582,500.0,0.00046457,120]
[357355745,1744012277617,500.0,0.00046457,120]
[357355746,1744012277738,510.13470058,0.00046457,120]
[357355747,1744012277986,500.0,0.00046457,120]
[357355748,1744012278024,576.76,0.00046457,120]
[357355749,1744012278148,500.0,0.00046457,120]
[357355750,1744012278230,504.11725425,0.00046457,120]
[357355751,1744012278315,500.0,0.00046457,120]
[357355752,1744012278599,4002.29,0.00046457,120]
[357355753,1744012278739,500.0,0.00046457,120]
[357355754,1744012278991,4002.29,0.00046457,120]
[357355755,1744012279024,500.0,0.00046457,120]
[357355756,1744012279094,4002.29,0.00046457,120]
[357355757,1744012279262,500.0,0.00046457,120]
[357355758,1744012279374,4002.29,0.00046457,120]
[357355759,1744012279553,500.0,0.00046457,120]
[357355760,1744012279627,4002.29,0.00046457,120]
[357355761,1744012279806,500.0,0.00046457,120]
[357355762,1744012279885,4002.29,0.00046457,120]
[357355763,1744012280088,500.0,0.00046457,120]
[357355764,1744012280155,4002.29,0.00046457,120]
[357355765,1744012280353,500.0,0.00046457,120]
[357355766,1744012280389,500.0,0.00046457,120]
[357355767,1744012280424,4002.29,0.00046457,120]
[357355768,1744012280601,500.0,0.00046457,120]
[357355769,1744012280691,4002.29,0.00046457,120]
[357355770,1744012280848,500.0,0.00046457,120]
[357355771,1744012280946,4002.29,0.00046457,120]
[357355772,1744012281077,500.0,0.00046457,120]
[357355773,1744012281214,4002.29,0.00046457,120]
[357355774,1744012281324,431.18529835,0.00046457,120]
[357355775,1744012281480,4002.29,0.00046457,120]
[357355776,1744012281547,500.0,0.00046457,120]
[357355777,1744012281735,4002.29,0.00046457,120]
[357355778,1744012281792,500.0,0.00046457,120]
[357355779,1744012281843,500.0,0.00046457,120]
[357355780,1744012281980,4002.29,0.00046457,120]
[357355781,1744012282026,500.0,0.00046457,120]
[357355782,1744012282077,503.14124546,0.00046457,120]
[357355783,1744012282237,4002.29,0.00046457,120]
[357355784,1744012282486,4002.29,0.00046457,120]
[357355785,1744012282611,500.0,0.00046457,120]
[357355786,1744012282745,4002.29,0.00046457,120]
[357355787,1744012282890,500.0,0.00046457,120]
[357355788,1744012283104,4002.29,0.00046457,120]
[357355789,1744012283141,500.0,0.00046457,120]
[357355790,1744012283370,500.0,0.00046457,120]
[357355791,1744012283411,4002.29,0.00046457,120]
[357355792,1744012283487,500.0,0.00046457,120]
[357355793,1744012283606,167.95356669,0.00046457,120]
[357355794,1744012283714,4002.29,0.00046457,120]
[357355795,1744012283748,500.0,0.00046457,120]
[357355796,1744012283981,4002.29,0.00046457,120]
[357355797,1744012284014,500.0,0.00046457,120]
[357355798,1744012284046,500.0,0.00046457,120]
[357355799,1744012284087,500.0,0.00046457,120]
[357355800,1744012284235,4002.29,0.00046457,120]